[Event "Early-Titled-Tuesday-Blitz-April-23-2024"]
[Site "Chess.com"]
[Date "2024.04.23"]
[Round "3"]
[White "LamaChampetre"]
[Black "KetiTsatsalashvili"]
[Result "0-1"]
[WhiteElo "2204"]
[BlackElo "2421"]
[TimeControl "180+1"]
[EndTime "8:29:18 PDT"]
[Termination "KetiTsatsalashvili won on time"]

1. d4 {[%clk 0:02:42.6]} 1... Nf6 {[%clk 0:02:50.1]} 2. c4 {[%clk 0:02:40.8]}
2... e6 {[%clk 0:02:50.3]} 3. Nf3 {[%clk 0:02:39.2]} 3... b6 {[%clk 0:02:50.6]}
4. g3 {[%clk 0:02:38.8]} 4... Ba6 {[%clk 0:02:50.4]} 5. Nbd2 {[%clk 0:02:37.1]}
5... d5 {[%clk 0:02:43.6]} 6. Bg2 {[%clk 0:02:26]} 6... Ne4 {[%clk 0:02:41]} 7.
Qc2 {[%clk 0:02:22.7]} 7... f5 {[%clk 0:02:37.7]} 8. O-O {[%clk 0:02:21.8]} 8...
Bd6 {[%clk 0:02:32.5]} 9. b3 {[%clk 0:02:21.9]} 9... O-O {[%clk 0:02:31.9]} 10.
Bb2 {[%clk 0:02:22.2]} 10... c6 {[%clk 0:02:31.7]} 11. Rac1 {[%clk 0:02:11.2]}
11... Nd7 {[%clk 0:02:28.3]} 12. Ne1 {[%clk 0:02:11.3]} 12... Qe7 {[%clk
0:02:09.8]} 13. Nxe4 {[%clk 0:02:09.4]} 13... fxe4 {[%clk 0:02:01.7]} 14. f3
{[%clk 0:02:09.2]} 14... exf3 {[%clk 0:01:55.8]} 15. Bxf3 {[%clk 0:02:04.9]}
15... Rac8 {[%clk 0:01:46.8]} 16. e4 {[%clk 0:02:04.8]} 16... Qg5 {[%clk
0:01:43.6]} 17. Qe2 {[%clk 0:01:25.5]} 17... Rce8 {[%clk 0:01:23.1]} 18. e5
{[%clk 0:01:15.2]} 18... Be7 {[%clk 0:01:17.8]} 19. Nd3 {[%clk 0:01:14.8]} 19...
Qh6 {[%clk 0:01:10.8]} 20. Rc2 {[%clk 0:00:58.9]} 20... Rf7 {[%clk 0:01:06.3]}
21. Bc1 {[%clk 0:00:52.5]} 21... Bg5 {[%clk 0:01:01.2]} 22. Bxg5 {[%clk
0:00:51.4]} 22... Qxg5 {[%clk 0:01:02.1]} 23. Rcc1 {[%clk 0:00:15.4]} 23... Ref8
{[%clk 0:01:01]} 24. Bg2 {[%clk 0:00:15.8]} 24... Rxf1+ {[%clk 0:00:56.9]} 25.
Rxf1 {[%clk 0:00:16.7]} 25... Rxf1+ {[%clk 0:00:56.9]} 26. Bxf1 {[%clk
0:00:16.6]} 26... dxc4 {[%clk 0:00:54.2]} 27. Nf4 {[%clk 0:00:16.6]} 27... Qf5
{[%clk 0:00:41.6]} 28. bxc4 {[%clk 0:00:16.4]} 28... c5 {[%clk 0:00:36]} 29. Qf3
{[%clk 0:00:14.3]} 29... cxd4 {[%clk 0:00:31.7]} 30. Qa8+ {[%clk 0:00:14.3]}
30... Nf8 {[%clk 0:00:30.4]} 31. Qxa7 {[%clk 0:00:13.9]} 31... Bc8 {[%clk
0:00:22.6]} 32. Qxb6 {[%clk 0:00:13.2]} 32... Qxe5 {[%clk 0:00:22.3]} 33. Qd8
{[%clk 0:00:12.2]} 33... Qe3+ {[%clk 0:00:21.7]} 34. Kg2 {[%clk 0:00:12.5]}
34... Bb7+ {[%clk 0:00:21.8]} 35. Kh3 {[%clk 0:00:11.5]} 35... Be4 {[%clk
0:00:19.4]} 36. Be2 {[%clk 0:00:09.1]} 36... Bf5+ {[%clk 0:00:18.7]} 37. Bg4
{[%clk 0:00:09.4]} 37... Bxg4+ {[%clk 0:00:17.6]} 38. Kxg4 {[%clk 0:00:10.3]}
38... h5+ {[%clk 0:00:16.8]} 39. Nxh5 {[%clk 0:00:08.9]} 39... Qe4+ {[%clk
0:00:14.6]} 40. Nf4 {[%clk 0:00:08.5]} 40... Qf5+ {[%clk 0:00:14.3]} 41. Kf3
{[%clk 0:00:08.2]} 41... e5 {[%clk 0:00:14.8]} 42. Qd5+ {[%clk 0:00:07]} 42...
Kh7 {[%clk 0:00:13]} 43. g4 {[%clk 0:00:03]} 43... Qf6 {[%clk 0:00:11.9]} 44.
Qe4+ {[%clk 0:00:02.9]} 44... Kh8 {[%clk 0:00:12.4]} 0-1

[Event "Early-Titled-Tuesday-Blitz-April-23-2024"]
[Site "Chess.com"]
[Date "2024.04.23"]
[Round "3"]
[White "Keranke"]
[Black "average_trans"]
[Result "1-0"]
[WhiteElo "2838"]
[BlackElo "2248"]
[TimeControl "180+1"]
[EndTime "8:29:19 PDT"]
[Termination "Keranke won by resignation"]

1. c4 {[%clk 0:03:00.9]} 1... c5 {[%clk 0:02:56.9]} 2. g3 {[%clk 0:03:01.1]}
2... Nc6 {[%clk 0:02:54.2]} 3. Bg2 {[%clk 0:03:02]} 3... g6 {[%clk 0:02:48.9]}
4. Nc3 {[%clk 0:03:01]} 4... Bg7 {[%clk 0:02:48.7]} 5. Nf3 {[%clk 0:03:01]} 5...
Nf6 {[%clk 0:02:48.9]} 6. O-O {[%clk 0:03:01.6]} 6... O-O {[%clk 0:02:47.5]} 7.
d3 {[%clk 0:03:02.3]} 7... d6 {[%clk 0:02:47.2]} 8. a3 {[%clk 0:03:01.7]} 8...
a6 {[%clk 0:02:46.1]} 9. Rb1 {[%clk 0:03:01.8]} 9... Rb8 {[%clk 0:02:45.4]} 10.
b4 {[%clk 0:03:01.2]} 10... cxb4 {[%clk 0:02:44.3]} 11. axb4 {[%clk 0:03:02.1]}
11... b5 {[%clk 0:02:44.5]} 12. cxb5 {[%clk 0:02:58.5]} 12... axb5 {[%clk
0:02:45.3]} 13. Be3 {[%clk 0:02:59]} 13... Be6 {[%clk 0:02:40.6]} 14. Nd4 {[%clk
0:02:58.6]} 14... Nxd4 {[%clk 0:02:39]} 15. Bxd4 {[%clk 0:02:59.5]} 15... Qc7
{[%clk 0:02:28.5]} 16. Rc1 {[%clk 0:02:57.9]} 16... Rfc8 {[%clk 0:02:22.3]} 17.
Bxf6 {[%clk 0:02:37.7]} 17... Bxf6 {[%clk 0:02:21.3]} 18. Nd5 {[%clk 0:02:37.5]}
18... Qxc1 {[%clk 0:02:18.5]} 19. Nxf6+ {[%clk 0:02:37.3]} 19... Kg7 {[%clk
0:02:15.3]} 20. Nh5+ {[%clk 0:02:32.5]} 20... gxh5 {[%clk 0:02:14.6]} 21. Qxc1
{[%clk 0:02:32.8]} 21... Rxc1 {[%clk 0:02:14.1]} 22. Rxc1 {[%clk 0:02:33.7]}
22... h4 {[%clk 0:02:13.7]} 23. gxh4 {[%clk 0:02:27.9]} 23... Kf6 {[%clk
0:02:11.5]} 24. f4 {[%clk 0:02:18.8]} 24... Rg8 {[%clk 0:02:08.7]} 25. Kf2
{[%clk 0:02:19]} 25... Rg4 {[%clk 0:02:06.3]} 26. e3 {[%clk 0:02:18.4]} 26...
Rxh4 {[%clk 0:02:05.9]} 27. h3 {[%clk 0:02:18.6]} 27... Rh5 {[%clk 0:01:54.9]}
28. Kg3 {[%clk 0:02:15.1]} 28... Rh6 {[%clk 0:01:17.7]} 29. Rc7 {[%clk 0:02:10]}
29... Rg6+ {[%clk 0:01:13.1]} 30. Kf2 {[%clk 0:02:10.1]} 30... Bb3 {[%clk
0:01:12]} 31. Be4 {[%clk 0:01:54.6]} 31... Rg8 {[%clk 0:01:06.7]} 32. Rb7 {[%clk
0:01:47.7]} 32... Ba4 {[%clk 0:00:43.4]} 33. Bc6 {[%clk 0:01:44.1]} 33... Rc8
{[%clk 0:00:43.3]} 34. Rb6 {[%clk 0:01:44.3]} 34... Rc7 {[%clk 0:00:37.3]} 35.
e4 {[%clk 0:01:41]} 35... Ke6 {[%clk 0:00:34.3]} 36. Ke3 {[%clk 0:01:39.5]}
36... Kf6 {[%clk 0:00:34.5]} 37. Bxb5 {[%clk 0:01:31.5]} 37... Bxb5 {[%clk
0:00:34.1]} 38. Rxb5 {[%clk 0:01:32.4]} 38... Rc1 {[%clk 0:00:33.7]} 39. Rh5
{[%clk 0:01:31.4]} 39... Kg6 {[%clk 0:00:33.1]} 40. Rg5+ {[%clk 0:01:32]} 40...
Kf6 {[%clk 0:00:32.3]} 41. b5 {[%clk 0:01:30.9]} 41... Rh1 {[%clk 0:00:29.3]}
42. Kd4 {[%clk 0:01:22.2]} 42... Rxh3 {[%clk 0:00:27.6]} 43. b6 {[%clk
0:01:19.7]} 43... e5+ {[%clk 0:00:27.8]} 44. Kc4 {[%clk 0:01:18.8]} 44... Rh1
{[%clk 0:00:26.8]} 45. Kd5 {[%clk 0:01:07.4]} 45... Rb1 {[%clk 0:00:26.1]} 46.
Kc6 {[%clk 0:01:07.6]} 46... h6 {[%clk 0:00:22.9]} 47. Rh5 {[%clk 0:01:01.5]}
47... Kg6 {[%clk 0:00:22.8]} 48. fxe5 {[%clk 0:00:56]} 48... Kxh5 {[%clk
0:00:18.4]} 49. exd6 {[%clk 0:00:56.1]} 49... Kg4 {[%clk 0:00:11]} 50. d7 {[%clk
0:00:55.8]} 50... h5 {[%clk 0:00:11.3]} 51. d8=Q {[%clk 0:00:56]} 51... h4
{[%clk 0:00:12.2]} 52. Qg8+ {[%clk 0:00:55.7]} 52... Kf3 {[%clk 0:00:12.1]} 53.
Qxf7+ {[%clk 0:00:56]} 53... Ke3 {[%clk 0:00:12.2]} 54. Qh5 {[%clk 0:00:55.8]}
54... Rc1+ {[%clk 0:00:12.3]} 55. Kd6 {[%clk 0:00:55]} 55... Kxd3 {[%clk
0:00:12.6]} 56. Qxh4 {[%clk 0:00:54.1]} 56... Kd4 {[%clk 0:00:12.8]} 57. e5+
{[%clk 0:00:54]} 57... Kc3 {[%clk 0:00:13.7]} 1-0

[Event "Early-Titled-Tuesday-Blitz-April-23-2024"]
[Site "Chess.com"]
[Date "2024.04.23"]
[Round "3"]
[White "Maria_Elayza"]
[Black "Ural_bogatyr"]
[Result "0-1"]
[WhiteElo "2160"]
[BlackElo "2562"]
[TimeControl "180+1"]
[EndTime "8:29:21 PDT"]
[Termination "Ural_bogatyr won on time"]

1. d4 {[%clk 0:02:58.8]} 1... Nf6 {[%clk 0:02:59.5]} 2. Bf4 {[%clk 0:02:57.3]}
2... d5 {[%clk 0:02:59.3]} 3. e3 {[%clk 0:02:56.5]} 3... c5 {[%clk 0:02:59.4]}
4. c3 {[%clk 0:02:55.8]} 4... Nc6 {[%clk 0:02:58.5]} 5. Nd2 {[%clk 0:02:54]}
5... Bf5 {[%clk 0:02:57.6]} 6. Ngf3 {[%clk 0:02:53.3]} 6... e6 {[%clk
0:02:56.6]} 7. Bb5 {[%clk 0:02:50.8]} 7... a6 {[%clk 0:02:47.4]} 8. Bxc6+ {[%clk
0:02:42.1]} 8... bxc6 {[%clk 0:02:48.3]} 9. O-O {[%clk 0:02:41.2]} 9... Bd6
{[%clk 0:02:46.3]} 10. Qa4 {[%clk 0:02:39]} 10... Bxf4 {[%clk 0:02:19.1]} 11.
Qxc6+ {[%clk 0:02:34.8]} 11... Nd7 {[%clk 0:02:19.7]} 12. exf4 {[%clk
0:02:33.5]} 12... O-O {[%clk 0:02:19.6]} 13. Ne5 {[%clk 0:02:30.5]} 13... Nxe5
{[%clk 0:02:11.9]} 14. fxe5 {[%clk 0:02:27.1]} 14... Bd3 {[%clk 0:02:06.9]} 15.
Rfe1 {[%clk 0:02:25.8]} 15... cxd4 {[%clk 0:01:49.6]} 16. cxd4 {[%clk
0:02:24.3]} 16... Rc8 {[%clk 0:01:49.1]} 17. Qa4 {[%clk 0:02:10.5]} 17... Qg5
{[%clk 0:01:46.9]} 18. Nf3 {[%clk 0:02:04.8]} 18... Qg6 {[%clk 0:01:44.1]} 19.
Rac1 {[%clk 0:01:58.1]} 19... Be4 {[%clk 0:01:27.4]} 20. Qa3 {[%clk 0:01:45.6]}
20... Rxc1 {[%clk 0:01:16]} 21. Rxc1 {[%clk 0:01:43.4]} 21... f6 {[%clk
0:01:15.6]} 22. g3 {[%clk 0:01:13.9]} 22... Qg4 {[%clk 0:01:09.1]} 23. Ne1
{[%clk 0:01:07.3]} 23... fxe5 {[%clk 0:01:05.4]} 24. f3 {[%clk 0:00:59.6]} 24...
Qg5 {[%clk 0:01:03.4]} 25. Rd1 {[%clk 0:00:36.2]} 25... Bg6 {[%clk 0:00:59.7]}
26. dxe5 {[%clk 0:00:30.8]} 26... Qxe5 {[%clk 0:00:59.3]} 27. Ng2 {[%clk
0:00:23.2]} 27... Bh5 {[%clk 0:00:38.4]} 28. Nf4 {[%clk 0:00:17.4]} 28... Bf7
{[%clk 0:00:38.5]} 29. Kf2 {[%clk 0:00:16.4]} 29... Rb8 {[%clk 0:00:36.8]} 30.
Re1 {[%clk 0:00:16.5]} 30... Qxb2+ {[%clk 0:00:35.6]} 31. Qxb2 {[%clk
0:00:13.1]} 31... Rxb2+ {[%clk 0:00:36.5]} 32. Re2 {[%clk 0:00:13.7]} 32...
Rxe2+ {[%clk 0:00:37]} 33. Kxe2 {[%clk 0:00:14.1]} 33... e5 {[%clk 0:00:36.4]}
34. Nd3 {[%clk 0:00:13.3]} 34... e4 {[%clk 0:00:36.7]} 35. fxe4 {[%clk
0:00:11.7]} 35... dxe4 {[%clk 0:00:37.6]} 36. Nc5 {[%clk 0:00:10.4]} 36... Bxa2
{[%clk 0:00:38]} 37. Nxe4 {[%clk 0:00:09.4]} 37... Kf7 {[%clk 0:00:33.8]} 38.
Kd2 {[%clk 0:00:08.2]} 38... Kg6 {[%clk 0:00:31.3]} 39. g4 {[%clk 0:00:06.5]}
39... Bd5 {[%clk 0:00:30.5]} 40. Nc3 {[%clk 0:00:04.8]} 40... Bf3 {[%clk
0:00:28.3]} 41. h3 {[%clk 0:00:03.7]} 41... Kg5 {[%clk 0:00:26.8]} 42. Ke3
{[%clk 0:00:02.7]} 42... Bg2 {[%clk 0:00:26.6]} 0-1

[Event "Early-Titled-Tuesday-Blitz-April-23-2024"]
[Site "Chess.com"]
[Date "2024.04.23"]
[Round "3"]
[White "RodTwinkz"]
[Black "Slovineanu"]
[Result "1-0"]
[WhiteElo "2681"]
[BlackElo "2499"]
[TimeControl "180+1"]
[EndTime "8:29:22 PDT"]
[Termination "RodTwinkz won by resignation"]

1. e4 {[%clk 0:02:59.6]} 1... c6 {[%clk 0:02:59.8]} 2. Nc3 {[%clk 0:02:59.4]}
2... d5 {[%clk 0:03:00.3]} 3. f4 {[%clk 0:02:59.7]} 3... dxe4 {[%clk 0:02:58.9]}
4. Nxe4 {[%clk 0:03:00.6]} 4... Nf6 {[%clk 0:02:59.2]} 5. Nf2 {[%clk 0:03:01]}
5... g6 {[%clk 0:02:59.2]} 6. Nf3 {[%clk 0:03:01.3]} 6... Bg7 {[%clk 0:02:59.6]}
7. d4 {[%clk 0:02:59.5]} 7... O-O {[%clk 0:02:59.8]} 8. Bc4 {[%clk 0:02:58.9]}
8... c5 {[%clk 0:02:53]} 9. c3 {[%clk 0:02:57.4]} 9... cxd4 {[%clk 0:02:52.5]}
10. Nxd4 {[%clk 0:02:56.9]} 10... Nc6 {[%clk 0:02:47.1]} 11. Nxc6 {[%clk
0:02:56.4]} 11... bxc6 {[%clk 0:02:46.1]} 12. Qe2 {[%clk 0:02:54.9]} 12... Nd5
{[%clk 0:02:26.6]} 13. O-O {[%clk 0:02:53.5]} 13... Rb8 {[%clk 0:02:15.2]} 14.
Ne4 {[%clk 0:02:41]} 14... Bf5 {[%clk 0:02:10]} 15. g4 {[%clk 0:02:18.5]} 15...
Bxe4 {[%clk 0:02:01.8]} 16. Qxe4 {[%clk 0:02:19.4]} 16... e6 {[%clk 0:02:00.6]}
17. Kh1 {[%clk 0:02:05.6]} 17... a5 {[%clk 0:01:45.2]} 18. a4 {[%clk 0:02:03.7]}
18... Qh4 {[%clk 0:01:41.5]} 19. Qg2 {[%clk 0:01:59.1]} 19... Rfd8 {[%clk
0:01:29]} 20. Be2 {[%clk 0:01:56.1]} 20... Nf6 {[%clk 0:01:18.6]} 21. f5 {[%clk
0:01:48.7]} 21... exf5 {[%clk 0:01:16.6]} 22. gxf5 {[%clk 0:01:48.4]} 22... Qe4
{[%clk 0:00:48.9]} 23. fxg6 {[%clk 0:01:30.9]} 23... Qxg2+ {[%clk 0:00:47.7]}
24. Kxg2 {[%clk 0:01:31.7]} 24... hxg6 {[%clk 0:00:47.3]} 25. Bf3 {[%clk
0:01:24.3]} 25... Nd5 {[%clk 0:00:42.5]} 26. Rf2 {[%clk 0:01:14.3]} 26... Re8
{[%clk 0:00:41.7]} 27. Bxd5 {[%clk 0:00:55.9]} 27... cxd5 {[%clk 0:00:39.2]} 28.
Bf4 {[%clk 0:00:55.9]} 28... Be5 {[%clk 0:00:30.8]} 29. Bg3 {[%clk 0:00:49]}
29... Bxg3 {[%clk 0:00:28.4]} 30. hxg3 {[%clk 0:00:49.9]} 30... Re6 {[%clk
0:00:27.2]} 31. Rd1 {[%clk 0:00:49.4]} 31... Reb6 {[%clk 0:00:20.6]} 32. Rxd5
{[%clk 0:00:46.2]} 32... Rxb2 {[%clk 0:00:21.2]} 33. Rxa5 {[%clk 0:00:46.3]}
33... Rxf2+ {[%clk 0:00:20.9]} 34. Kxf2 {[%clk 0:00:47.2]} 34... Rb3 {[%clk
0:00:20.3]} 35. Rc5 {[%clk 0:00:46]} 35... Ra3 {[%clk 0:00:20.6]} 36. a5 {[%clk
0:00:46.4]} 36... Kg7 {[%clk 0:00:20.2]} 37. g4 {[%clk 0:00:46]} 37... f5 {[%clk
0:00:19.2]} 38. gxf5 {[%clk 0:00:34.3]} 38... gxf5 {[%clk 0:00:19.6]} 39. Kf3
{[%clk 0:00:34.6]} 39... Kg6 {[%clk 0:00:19.4]} 40. Kf4 {[%clk 0:00:34.6]} 40...
Ra1 {[%clk 0:00:16.8]} 41. Rc6+ {[%clk 0:00:32.8]} 41... Kf7 {[%clk 0:00:17.3]}
42. a6 {[%clk 0:00:32.3]} 42... Rf1+ {[%clk 0:00:16.7]} 43. Ke5 {[%clk
0:00:32.7]} 43... Ke7 {[%clk 0:00:13.8]} 44. Rc7+ {[%clk 0:00:30.9]} 44... Kd8
{[%clk 0:00:13.3]} 45. a7 {[%clk 0:00:31.1]} 45... Ra1 {[%clk 0:00:06.2]} 46.
Rb7 {[%clk 0:00:31.2]} 1-0

[Event "Early-Titled-Tuesday-Blitz-April-23-2024"]
[Site "Chess.com"]
[Date "2024.04.23"]
[Round "3"]
[White "Kimkibo"]
[Black "Ginger_GM"]
[Result "0-1"]
[WhiteElo "2411"]
[BlackElo "2653"]
[TimeControl "180+1"]
[EndTime "8:29:23 PDT"]
[Termination "Ginger_GM won on time"]

1. d4 {[%clk 0:02:59.6]} 1... e6 {[%clk 0:02:57.2]} 2. Nf3 {[%clk 0:02:58.2]}
2... f5 {[%clk 0:02:56.3]} 3. c4 {[%clk 0:02:55.8]} 3... Nf6 {[%clk 0:02:55.6]}
4. Nc3 {[%clk 0:02:56.7]} 4... Be7 {[%clk 0:02:50.1]} 5. g3 {[%clk 0:02:56.2]}
5... O-O {[%clk 0:02:49.7]} 6. Bg2 {[%clk 0:02:56.3]} 6... d6 {[%clk 0:02:50.1]}
7. O-O {[%clk 0:02:53.2]} 7... Ne4 {[%clk 0:02:50]} 8. Qc2 {[%clk 0:02:40.7]}
8... Nxc3 {[%clk 0:02:49.7]} 9. Qxc3 {[%clk 0:02:40.5]} 9... a5 {[%clk
0:02:49.6]} 10. Re1 {[%clk 0:02:28.2]} 10... Nc6 {[%clk 0:02:36.5]} 11. a3
{[%clk 0:02:26.5]} 11... Bf6 {[%clk 0:02:03.6]} 12. e3 {[%clk 0:02:16.7]} 12...
a4 {[%clk 0:02:01]} 13. Bd2 {[%clk 0:02:12.4]} 13... e5 {[%clk 0:02:00.4]} 14.
Rad1 {[%clk 0:01:58]} 14... g5 {[%clk 0:01:56.3]} 15. Bc1 {[%clk 0:01:51.7]}
15... Qe7 {[%clk 0:01:53.6]} 16. d5 {[%clk 0:01:29.1]} 16... Na5 {[%clk
0:01:31.1]} 17. e4 {[%clk 0:01:18.6]} 17... f4 {[%clk 0:01:29.7]} 18. c5 {[%clk
0:01:09.9]} 18... dxc5 {[%clk 0:01:18.3]} 19. gxf4 {[%clk 0:00:58.6]} 19... gxf4
{[%clk 0:01:14.2]} 20. Kh1 {[%clk 0:00:50.1]} 20... Kh8 {[%clk 0:01:10.8]} 21.
Rg1 {[%clk 0:00:42.1]} 21... Nb3 {[%clk 0:01:10.5]} 22. Bf1 {[%clk 0:00:37.1]}
22... Bd7 {[%clk 0:00:52.6]} 23. Be2 {[%clk 0:00:34.2]} 23... Rg8 {[%clk
0:00:50.5]} 24. Bc4 {[%clk 0:00:21.2]} 24... Rxg1+ {[%clk 0:00:34.3]} 25. Rxg1
{[%clk 0:00:22.1]} 25... Nd4 {[%clk 0:00:34.6]} 26. Nxd4 {[%clk 0:00:21.4]}
26... cxd4 {[%clk 0:00:33.1]} 27. Qf3 {[%clk 0:00:13.2]} 27... b5 {[%clk
0:00:32.9]} 28. Ba2 {[%clk 0:00:11.4]} 28... Rf8 {[%clk 0:00:22.1]} 29. Bd2
{[%clk 0:00:09.3]} 29... Qe8 {[%clk 0:00:19.8]} 30. Bb4 {[%clk 0:00:09.1]} 30...
Rg8 {[%clk 0:00:20.2]} 31. Rxg8+ {[%clk 0:00:06.5]} 31... Qxg8 {[%clk
0:00:20.3]} 32. d6 {[%clk 0:00:07.3]} 32... Qxa2 {[%clk 0:00:19.7]} 33. dxc7
{[%clk 0:00:07.7]} 33... Qe6 {[%clk 0:00:17.9]} 34. Qc3 {[%clk 0:00:06.7]} 34...
Bc8 {[%clk 0:00:17.5]} 35. Qc5 {[%clk 0:00:06.1]} 35... Bg7 {[%clk 0:00:14.9]}
36. Qxb5 {[%clk 0:00:05.7]} 36... h6 {[%clk 0:00:14.8]} 37. Qxa4 {[%clk
0:00:04.3]} 37... f3 {[%clk 0:00:14.8]} 38. Qb5 {[%clk 0:00:03.2]} 38... Qg4
{[%clk 0:00:13.4]} 39. Qf1 {[%clk 0:00:02.2]} 39... Ba6 {[%clk 0:00:12]} 40. Qg1
{[%clk 0:00:01.2]} 40... Qxe4 {[%clk 0:00:11.7]} 0-1

[Event "Early-Titled-Tuesday-Blitz-April-23-2024"]
[Site "Chess.com"]
[Date "2024.04.23"]
[Round "3"]
[White "BashirliSaadat"]
[Black "Matibar"]
[Result "1/2-1/2"]
[WhiteElo "2386"]
[BlackElo "2839"]
[TimeControl "180+1"]
[EndTime "8:29:25 PDT"]
[Termination "Game drawn by repetition"]

1. d4 {[%clk 0:03:00.9]} 1... f5 {[%clk 0:02:58.3]} 2. e3 {[%clk 0:03:00.2]}
2... Nf6 {[%clk 0:02:58.1]} 3. Bd3 {[%clk 0:03:00.1]} 3... g6 {[%clk 0:02:57.2]}
4. f4 {[%clk 0:02:58.4]} 4... Bg7 {[%clk 0:02:56.8]} 5. Nf3 {[%clk 0:02:58.8]}
5... d6 {[%clk 0:02:55.4]} 6. O-O {[%clk 0:02:56]} 6... O-O {[%clk 0:02:50.4]}
7. b3 {[%clk 0:02:56.2]} 7... Nc6 {[%clk 0:02:49.6]} 8. Bb2 {[%clk 0:02:55.4]}
8... Nb4 {[%clk 0:02:46.1]} 9. Bc4+ {[%clk 0:02:51.1]} 9... Kh8 {[%clk
0:02:45.2]} 10. a3 {[%clk 0:02:49.9]} 10... Nbd5 {[%clk 0:02:44.9]} 11. Qe2
{[%clk 0:02:46.7]} 11... e6 {[%clk 0:02:42.8]} 12. Bxd5 {[%clk 0:02:37.4]} 12...
exd5 {[%clk 0:02:38.7]} 13. Nbd2 {[%clk 0:02:35.6]} 13... b6 {[%clk 0:02:32]}
14. h3 {[%clk 0:02:34.7]} 14... Bb7 {[%clk 0:02:29]} 15. Qf2 {[%clk 0:02:34.4]}
15... Qd7 {[%clk 0:02:28.9]} 16. Rfe1 {[%clk 0:02:31.9]} 16... Rae8 {[%clk
0:02:28.9]} 17. Ng5 {[%clk 0:02:26]} 17... h6 {[%clk 0:02:28]} 18. Ngf3 {[%clk
0:02:26]} 18... Kh7 {[%clk 0:02:23]} 19. Qh4 {[%clk 0:02:21.7]} 19... Re7 {[%clk
0:02:15.8]} 20. Qg3 {[%clk 0:02:16.3]} 20... Qe8 {[%clk 0:02:14.2]} 21. Nf1
{[%clk 0:02:06.9]} 21... Ne4 {[%clk 0:02:12.2]} 22. Qh2 {[%clk 0:02:04.9]} 22...
g5 {[%clk 0:02:06.2]} 23. fxg5 {[%clk 0:01:58.9]} 23... hxg5 {[%clk 0:02:04.8]}
24. h4 {[%clk 0:01:59.4]} 24... g4 {[%clk 0:02:02.4]} 25. Ng5+ {[%clk
0:01:59.4]} 25... Nxg5 {[%clk 0:01:58.4]} 26. hxg5+ {[%clk 0:02:00.3]} 26... Kg6
{[%clk 0:01:51.6]} 27. Qf4 {[%clk 0:01:51.5]} 27... Re4 {[%clk 0:01:28.5]} 28.
Qf2 {[%clk 0:01:50.3]} 28... Qe7 {[%clk 0:01:10.2]} 29. Ng3 {[%clk 0:01:45.6]}
29... Qxg5 {[%clk 0:01:01]} 30. Nxe4 {[%clk 0:01:41.3]} 30... dxe4 {[%clk
0:01:00.4]} 31. Qf4 {[%clk 0:01:35.5]} 31... g3 {[%clk 0:00:55.8]} 32. Qxg5+
{[%clk 0:01:29.5]} 32... Kxg5 {[%clk 0:00:55.8]} 33. Rf1 {[%clk 0:01:27.9]}
33... Bh6 {[%clk 0:00:55.3]} 34. Rae1 {[%clk 0:01:25.9]} 34... Kg6 {[%clk
0:00:55.4]} 35. c4 {[%clk 0:01:23.7]} 35... Bg5 {[%clk 0:00:55]} 36. d5 {[%clk
0:01:22.5]} 36... a5 {[%clk 0:00:52.5]} 37. Bd4 {[%clk 0:01:19.6]} 37... Kh5
{[%clk 0:00:38.4]} 38. a4 {[%clk 0:01:16.1]} 38... Kg4 {[%clk 0:00:38.4]} 39.
Rd1 {[%clk 0:01:13.4]} 39... Bc8 {[%clk 0:00:37.8]} 40. Rfe1 {[%clk 0:01:11.9]}
40... Bd7 {[%clk 0:00:37]} 41. Kf1 {[%clk 0:01:11.4]} 41... f4 {[%clk
0:00:20.8]} 42. exf4 {[%clk 0:01:10.1]} 42... Rxf4+ {[%clk 0:00:20.5]} 43. Ke2
{[%clk 0:01:07.5]} 43... Kh5 {[%clk 0:00:19.7]} 44. Rh1+ {[%clk 0:01:06.7]}
44... Kg6 {[%clk 0:00:19.2]} 45. Rdf1 {[%clk 0:01:05.8]} 45... Bg4+ {[%clk
0:00:20.1]} 46. Ke1 {[%clk 0:01:04.9]} 46... e3 {[%clk 0:00:18]} 47. Rxf4 {[%clk
0:01:02.2]} 47... Bxf4 {[%clk 0:00:18.9]} 48. Rh4 {[%clk 0:00:59.2]} 48... Kf5
{[%clk 0:00:17.5]} 49. Rh7 {[%clk 0:00:27.2]} 49... Ke4 {[%clk 0:00:17.6]} 50.
Bb2 {[%clk 0:00:23.1]} 50... Kd3 {[%clk 0:00:14.6]} 51. Rf7 {[%clk 0:00:22]}
51... Bh6 {[%clk 0:00:14.1]} 52. Rh7 {[%clk 0:00:20.1]} 52... Bf4 {[%clk
0:00:13.7]} 53. Rf7 {[%clk 0:00:20.3]} 53... Bh6 {[%clk 0:00:13.4]} 54. Rh7
{[%clk 0:00:20.6]} 54... Bf4 {[%clk 0:00:11.1]} 1/2-1/2